bitfinex/quotes_BTCUSD_20240101
["timestamp","ask_amount","ask_price","bid_price","bid_amount"]
[1704135346840,1.39045242,43192.0,43191.0,0.001]
[1704135347483,1.25166485,43192.0,43191.0,0.001]
[1704135347900,1.57466485,43192.0,43191.0,0.001]
[1704135348104,2.03771285,43192.0,43191.0,0.001]
[1704135348336,2.08439285,43192.0,43191.0,0.001]
[1704135348753,2.03771285,43192.0,43191.0,0.001]
[1704135349423,2.08643285,43192.0,43191.0,0.001]
[1704135349873,2.164285,43192.0,43191.0,0.001]
[1704135350281,1.701237,43192.0,43191.0,0.001]
[1704135350888,2.164285,43192.0,43191.0,0.001]
[1704135352951,1.701237,43192.0,43191.0,0.001]
[1704135354183,2.164285,43192.0,43191.0,0.001]
[1704135354747,0.1,43183.0,43181.0,0.2671]
[1704135354956,1.00688734,43182.0,43181.0,0.2671]
[1704135355174,1.22359235,43182.0,43181.0,0.2671]
[1704135355382,1.46396047,43182.0,43181.0,0.2671]
[1704135355826,1.56396047,43182.0,43181.0,0.2671]
[1704135356051,1.56496047,43182.0,43181.0,0.2741]
[1704135356253,1.56396047,43182.0,43181.0,0.2731]
[1704135356698,1.57896047,43182.0,43181.0,0.2681]
[1704135356900,0.1,43180.0,43166.0,0.05646]
[1704135357108,0.463213,43177.0,43167.0,0.2546]
[1704135357304,0.23321711,43176.0,43167.0,0.26015494]
[1704135358865,0.23921711,43176.0,43167.0,0.26115494]
[1704135359958,0.23921711,43176.0,43168.0,0.04464]
[1704135360135,0.23921711,43176.0,43167.0,0.26115494]
[1704135360368,0.23921711,43176.0,43169.0,0.00554557]
[1704135360548,0.23921711,43176.0,43168.0,0.05013026]
[1704135360765,0.23921711,43176.0,43170.0,0.00553478]
[1704135360766,0.24521711,43176.0,43170.0,0.00553478]
[1704135360915,0.24521711,43176.0,43169.0,0.00553947]
[1704135361147,0.463236,43175.0,43171.0,0.0055301]
[1704135361351,0.23321711,43174.0,43171.0,0.0055301]
[1704135361551,0.23321711,43174.0,43172.0,0.2506]
[1704135361803,0.23321711,43174.0,43172.0,0.25618678]
[1704135362436,0.1,43165.0,43153.0,0.0903]
[1704135362653,0.69646911,43173.0,43151.0,0.02893]
[1704135362654,0.13874761,43157.0,43151.0,0.02893]
[1704135362869,0.13874761,43157.0,43143.0,0.02893]
[1704135362870,0.2,43145.0,43143.0,0.02893]
[1704135363068,0.3,43142.0,43141.0,0.004]
[1704135363286,0.473585,43142.0,43141.0,0.004]
[1704135363557,0.473535,43147.0,43141.0,0.004]
[1704135363719,0.463458,43154.0,43143.0,0.1]
[1704135363925,0.25,43159.0,43143.0,0.1]
[1704135363926,0.003,43145.0,43143.0,0.1]
[1704135364339,0.003,43145.0,43143.0,0.04842]
[1704135364503,0.2,43154.0,43141.0,0.004]
[1704135364719,0.23321711,43153.0,43151.0,0.002]
[1704135365102,0.23321711,43153.0,43142.0,0.34628685]
[1704135365317,0.23321711,43153.0,43142.0,0.253]
[1704135365533,0.23321711,43153.0,43142.0,0.34628685]
[1704135365981,0.001,43145.0,43143.0,0.10728685]
[1704135366218,0.002,43145.0,43143.0,0.016]
[1704135366421,0.002,43145.0,43143.0,0.20928685]
[1704135366628,0.001,43145.0,43144.0,0.09328685]
[1704135366888,0.323,43158.0,43144.0,0.09328685]
[1704135367112,0.001,43145.0,43144.0,0.08828685]
[1704135367532,0.34464,43156.0,43144.0,0.08828685]
[1704135367743,0.23321711,43155.0,43144.0,0.08828685]
[1704135367952,0.001,43145.0,43144.0,0.09028685]
[1704135368180,0.001,43145.0,43144.0,0.002]
[1704135368635,0.001,43145.0,43144.0,0.003]
[1704135369041,0.001,43145.0,43144.0,0.002]
[1704135369248,0.002,43145.0,43144.0,0.007]
[1704135369448,0.001,43145.0,43144.0,0.005]
[1704135370521,0.002,43145.0,43144.0,0.10028685]
[1704135370741,0.002,43145.0,43144.0,0.007]
[1704135376110,0.04736,43145.0,43144.0,0.007]
[1704135377053,0.30357711,43145.0,43144.0,0.007]
[1704135377623,0.37191581,43145.0,43144.0,0.007]
[1704135378047,0.47191581,43145.0,43144.0,0.007]
[1704135378280,1.51512881,43145.0,43144.0,0.007]
[1704135378482,0.83357711,43145.0,43144.0,0.007]
[1704135378723,0.53357711,43145.0,43144.0,0.007]
[1704135378932,0.51057711,43145.0,43144.0,0.007]
[1704135379146,0.51057711,43145.0,43141.0,0.004]
[1704135379367,0.51057711,43145.0,43144.0,0.001]
[1704135379368,0.52357711,43145.0,43144.0,0.001]
[1704135379610,0.23657711,43145.0,43144.0,0.001]
[1704135379818,0.23657711,43145.0,43141.0,0.004]
[1704135379819,0.22357711,43145.0,43141.0,0.004]
[1704135380043,0.22357711,43145.0,43144.0,0.001]
[1704135380253,0.22357711,43145.0,43141.0,0.004]
[1704135380681,0.22257711,43145.0,43144.0,0.001]
[1704135381095,0.22957711,43145.0,43144.0,0.001]
[1704135381699,0.21757711,43145.0,43141.0,0.004]
[1704135382157,0.21757711,43145.0,43144.0,0.001]
[1704135382367,0.33357711,43145.0,43141.0,0.004]
[1704135382576,0.023,43144.0,43141.0,0.004]
[1704135382793,0.23321711,43143.0,43141.0,0.004]
[1704135383517,0.27304,43142.0,43141.0,0.004]
[1704135383750,0.57459581,43142.0,43141.0,0.005]
[1704135383959,0.87459581,43142.0,43141.0,0.005]
[1704135384627,0.97459581,43142.0,43141.0,0.005]
[1704135385027,0.97459581,43142.0,43141.0,0.004]
[1704135385237,0.55621711,43142.0,43141.0,0.004]
[1704135385656,0.53621711,43142.0,43141.0,0.004]
[1704135385872,0.53921711,43142.0,43141.0,0.004]
[1704135391402,1.12580211,43142.0,43141.0,0.004]
[1704135391615,1.38544211,43142.0,43141.0,0.004]
[1704135391864,1.28544211,43142.0,43141.0,0.004]
[1704135392087,1.38544211,43142.0,43141.0,0.004]
[1704135392546,1.28544211,43142.0,43141.0,0.004]
[1704135392782,1.22580211,43142.0,43141.0,0.004]
[1704135392994,1.37812211,43142.0,43141.0,0.004]
[1704135394697,1.40320211,43142.0,43141.0,0.004]
[1704135395112,1.41320211,43142.0,43141.0,0.004]
[1704135395750,1.40720211,43142.0,43141.0,0.004]
[1704135395955,1.43820211,43142.0,43141.0,0.006]
[1704135396165,1.43820211,43142.0,43141.0,0.004]
[1704135396166,1.42220211,43142.0,43141.0,0.004]
[1704135396588,1.50654081,43142.0,43141.0,0.006]
[1704135396798,1.60314081,43142.0,43141.0,0.006]
[1704135396975,1.50654081,43142.0,43141.0,0.006]
[1704135397408,1.61163909,43142.0,43141.0,0.006]
[1704135397610,1.69083909,43142.0,43141.0,0.006]
[1704135397853,1.59663909,43142.0,43141.0,0.006]
[1704135398063,1.61163909,43142.0,43141.0,0.006]
[1704135399568,1.57141243,43142.0,43141.0,0.006]
[1704135400788,1.49401243,43142.0,43141.0,0.006]
[1704135400993,1.55143243,43142.0,43141.0,0.006]
[1704135403460,1.08784743,43142.0,43141.0,0.006]
[1704135403670,1.55143243,43142.0,43141.0,0.006]
[1704135403878,1.57855243,43142.0,43141.0,0.006]
[1704135404752,1.47855243,43142.0,43141.0,0.006]
[1704135404991,1.49401243,43142.0,43141.0,0.006]
[1704135405200,1.54051243,43142.0,43141.0,0.006]
[1704135405419,1.49401243,43142.0,43141.0,0.006]
[1704135405845,1.54627243,43142.0,43141.0,0.006]
[1704135410248,1.34627243,43142.0,43141.0,0.006]
[1704135410462,0.70742743,43142.0,43141.0,0.006]
[1704135410871,0.59232915,43142.0,43141.0,0.006]
[1704135412357,0.57632915,43142.0,43141.0,0.004]
[1704135412567,0.58632915,43142.0,43141.0,0.005]
[1704135412795,0.57632915,43142.0,43141.0,0.004]
[1704135413431,0.56132915,43142.0,43141.0,0.004]
[1704135413891,0.57132915,43142.0,43141.0,0.004]
[1704135414333,0.57032915,43142.0,43141.0,0.005]
[1704135414544,0.97908915,43142.0,43141.0,0.005]
[1704135414755,1.44267415,43142.0,43141.0,0.005]
[1704135414970,1.42239415,43142.0,43141.0,0.005]
[1704135415384,1.527443,43142.0,43141.0,0.005]
[1704135415744,1.427443,43142.0,43141.0,0.005]
[1704135415953,1.06491415,43142.0,43141.0,0.005]
[1704135416156,1.26491415,43142.0,43141.0,0.005]
[1704135416556,1.06491415,43142.0,43141.0,0.005]
[1704135417346,0.60132915,43142.0,43141.0,0.005]
[1704135417792,0.57832915,43142.0,43141.0,0.005]
[1704135418656,0.34511204,43142.0,43141.0,0.005]
[1704135418874,0.04511204,43142.0,43141.0,0.005]
[1704135438724,0.27511204,43144.0,43141.0,0.005]
[1704135438926,0.50832915,43144.0,43141.0,0.005]
[1704135440139,0.50832915,43144.0,43141.0,0.004]
[1704135440541,0.51832915,43144.0,43141.0,0.005]
[1704135440954,0.52832915,43144.0,43141.0,0.006]
[1704135443340,0.40877049,43143.0,43141.0,0.006]
[1704135443571,1.25187453,43142.0,43141.0,0.006]
[1704135443788,1.40177549,43142.0,43141.0,0.006]
[1704135444009,1.57241164,43142.0,43141.0,0.006]
[1704135444231,1.57241164,43142.0,43141.0,0.005]
[1704135444702,1.48909549,43142.0,43141.0,0.005]
[1704135444892,1.95268049,43142.0,43141.0,0.005]
[1704135445310,2.07076869,43142.0,43141.0,0.006]
[1704135445522,2.07076869,43142.0,43141.0,0.005]
[1704135445727,2.07776869,43142.0,43141.0,0.006]
[1704135446160,2.09360111,43142.0,43141.0,0.006]
[1704135446378,1.42213609,43142.0,43141.0,0.006]
[1704135446825,1.33877549,43142.0,43141.0,0.006]
[1704135447056,1.23877549,43142.0,43141.0,0.006]
[1704135447245,1.19434728,43142.0,43141.0,0.006]
[1704135447395,1.17134728,43142.0,43141.0,0.006]
[1704135447610,1.01080211,43142.0,43141.0,0.006]
[1704135448243,0.014,43142.0,43141.0,0.006]
[1704135451368,0.014,43142.0,43141.0,0.005]
[1704135451369,0.007,43142.0,43141.0,0.005]
[1704135451792,0.01,43142.0,43141.0,0.005]
[1704135453076,0.003,43142.0,43141.0,0.004]
[1704135453317,0.006,43142.0,43141.0,0.004]
[1704135457961,0.70280211,43142.0,43141.0,0.004]
[1704135458165,0.76136211,43142.0,43141.0,0.004]
[1704135458409,0.7813739,43142.0,43141.0,0.004]
[1704135458981,0.88633357,43142.0,43141.0,0.004]
[1704135460554,0.7813739,43142.0,43141.0,0.004]
[1704135462181,0.70280211,43142.0,43141.0,0.004]
[1704135463195,0.006,43142.0,43141.0,0.004]
[1704135463835,0.32173009,43142.0,43141.0,0.004]
[1704135464033,1.79830164,43142.0,43141.0,0.004]
[1704135464275,0.3,43138.0,43137.0,0.02893]
[1704135464474,2.15375111,43138.0,43137.0,0.02893]
[1704135464582,2.01481239,43138.0,43137.0,0.02893]
[1704135464793,2.21137239,43138.0,43137.0,0.02893]
[1704135466333,2.35021988,43138.0,43137.0,0.02893]
[1704135466535,2.26893988,43138.0,43137.0,0.02993]
[1704135466937,2.28693988,43138.0,43137.0,0.03193]
[1704135467221,2.38293988,43138.0,43137.0,0.03193]
[1704135467409,2.28693988,43138.0,43137.0,0.03193]
[1704135467603,1.82331188,43138.0,43137.0,0.03193]
[1704135468214,2.38041988,43138.0,43137.0,0.03193]
[1704135468418,2.24157239,43138.0,43137.0,0.03193]
[1704135468646,2.28693988,43138.0,43137.0,0.03193]
[1704135469177,2.37867988,43138.0,43137.0,0.03193]
[1704135469564,2.25909093,43138.0,43137.0,0.03193]
[1704135469986,2.34921093,43138.0,43137.0,0.03193]
[1704135470848,2.25909093,43138.0,43137.0,0.03193]
[1704135471535,2.14271869,43138.0,43137.0,0.03193]
[1704135472229,2.25843901,43138.0,43137.0,0.03193]
[1704135472556,2.11492646,43138.0,43137.0,0.03193]
[1704135476390,2.20450646,43138.0,43137.0,0.03193]
[1704135476610,2.11492646,43138.0,43137.0,0.03193]
[1704135477315,1.65129846,43138.0,43137.0,0.03193]
[1704135477522,1.56809215,43138.0,43137.0,0.03193]
[1704135477941,2.03172015,43138.0,43137.0,0.03193]
[1704135478346,2.12202015,43138.0,43137.0,0.03193]
[1704135478549,2.17745642,43138.0,43137.0,0.03193]
[1704135478965,2.08715642,43138.0,43137.0,0.03193]
[1704135479169,2.17781642,43138.0,43137.0,0.03193]
[1704135479801,2.08715642,43138.0,43137.0,0.03193]
[1704135480130,2.17625642,43138.0,43137.0,0.03193]
[1704135480340,2.08715642,43138.0,43137.0,0.03193]
[1704135480579,1.98218938,43138.0,43137.0,0.03193]
[1704135480802,1.05493338,43138.0,43137.0,0.03193]
[1704135481045,1.98218938,43138.0,43137.0,0.03193]
[1704135483744,1.92675311,43138.0,43137.0,0.03193]
[1704135483953,1.90371311,43138.0,43137.0,0.03193]
[1704135485008,0.64345711,43138.0,43137.0,0.03193]
[1704135485217,0.26821711,43138.0,43137.0,0.03193]
[1704135486274,0.018,43138.0,43137.0,0.03093]
[1704135486717,0.036,43138.0,43137.0,0.03193]
[1704135486925,0.018,43138.0,43137.0,0.02993]
[1704135487146,0.02776095,43142.0,43137.0,0.02893]
[1704135487410,0.012,43138.0,43137.0,0.03093]
[1704135487622,0.007,43138.0,43137.0,0.02993]
[1704135488070,0.23321711,43141.0,43137.0,0.02893]
[1704135488294,0.007,43138.0,43137.0,0.02993]
[1704135488500,0.007,43138.0,43137.0,0.03093]
[1704135488742,0.23321711,43141.0,43137.0,0.02893]
[1704135489369,0.23321711,43141.0,43137.0,0.02993]
[1704135490236,0.23321711,43141.0,43137.0,0.02893]
[1704135490455,0.24521711,43141.0,43137.0,0.02993]
[1704135491735,0.25721711,43141.0,43137.0,0.03093]
[1704135493029,0.24521711,43141.0,43137.0,0.02993]
[1704135493344,0.24321711,43141.0,43137.0,0.02993]
[1704135493551,0.25321711,43141.0,43137.0,0.03093]
[1704135498154,0.05184,43140.0,43137.0,0.03093]
[1704135498366,0.23321711,43139.0,43137.0,0.03093]
[1704135498777,0.16321711,43139.0,43137.0,0.03093]
[1704135498980,0.16321711,43139.0,43137.0,0.02993]
[1704135499183,0.16321711,43139.0,43137.0,0.03093]
[1704135500360,0.16321711,43139.0,43137.0,0.02993]
[1704135500566,0.17021711,43139.0,43137.0,0.02993]
[1704135500779,0.17021711,43139.0,43137.0,0.03093]
[1704135500780,0.17721711,43139.0,43137.0,0.03093]
[1704135504696,0.014,43139.0,43137.0,0.03093]
[1704135512853,0.014,43139.0,43138.0,0.3]
[1704135513047,0.014,43139.0,43138.0,0.36178]
[1704135513582,0.007,43139.0,43138.0,0.36178]
[1704135513744,0.188,43154.0,43140.0,0.1]
[1704135513968,0.32602911,43151.0,43141.0,0.09328685]
[1704135514157,0.32602911,43151.0,43141.0,0.30438685]
[1704135514314,0.23321711,43151.0,43141.0,0.30438685]
[1704135514515,0.3,43150.0,43141.0,0.30438685]
[1704135515085,0.3,43150.0,43141.0,0.30538685]
[1704135515322,0.3,43150.0,43141.0,0.30638685]
[1704135515745,0.3,43150.0,43141.0,0.30538685]
[1704135516164,0.3,43150.0,43142.0,0.09328685]
[1704135517001,0.23321711,43149.0,43142.0,0.09328685]
[1704135517212,0.45633311,43149.0,43142.0,0.05328685]
[1704135517426,0.091596,43148.0,43142.0,0.05328685]
[1704135517604,0.25621711,43147.0,43142.0,0.002]
[1704135517805,0.045636,43146.0,43142.0,0.001]
[1704135518004,0.23321711,43145.0,43142.0,0.001]
[1704135518220,0.045636,43144.0,43142.0,0.001]
[1704135519876,0.045636,43144.0,43141.0,0.2111]
[1704135520083,0.045636,43143.0,43141.0,0.2111]
[1704135520315,0.045636,43142.0,43141.0,0.2111]
[1704135521302,0.045636,43142.0,43141.0,0.2141]
[1704135521501,0.046636,43142.0,43141.0,0.2161]
[1704135521701,0.046636,43142.0,43141.0,0.27614]
[1704135521927,0.046636,43142.0,43141.0,0.2301]
[1704135525949,0.046636,43142.0,43141.0,0.229569]
[1704135527999,0.046636,43142.0,43141.0,0.384649]
[1704135528389,0.046636,43142.0,43141.0,0.81786611]
[1704135528606,0.001,43142.0,43141.0,0.81786611]
[1704135528807,0.001,43142.0,43141.0,0.84708611]
[1704135529019,0.001,43142.0,43141.0,0.93018282]
[1704135529235,0.001,43142.0,43141.0,0.87749574]
[1704135529438,0.24538,43159.0,43149.0,0.1]
[1704135529692,0.1987,43159.0,43150.0,0.09328685]
[1704135529900,0.02766642,43159.0,43150.0,0.31218685]
[1704135530115,0.045636,43158.0,43150.0,0.31218685]
[1704135530243,0.045636,43158.0,43150.0,0.2189]
[1704135531827,0.054636,43158.0,43150.0,0.2199]
[1704135532011,0.054636,43158.0,43150.0,0.001]
[1704135532238,0.054636,43158.0,43150.0,0.04618]
[1704135532420,0.063636,43158.0,43150.0,0.04718]
[1704135532855,0.063636,43158.0,43150.0,0.002]
[1704135533066,0.063636,43158.0,43150.0,0.0476]
[1704135533290,0.063636,43158.0,43150.0,0.002]
[1704135533922,0.063636,43158.0,43150.0,0.04652]
[1704135534173,0.063636,43158.0,43150.0,0.002]
[1704135534798,0.063636,43158.0,43150.0,0.04718]
[1704135535006,0.063636,43158.0,43150.0,0.002]
[1704135536369,0.23321711,43157.0,43150.0,0.002]
[1704135536583,0.045636,43156.0,43150.0,0.002]
[1704135537204,0.045636,43156.0,43149.0,0.01]
[1704135537416,0.045636,43156.0,43150.0,0.001]
[1704135537619,0.045636,43156.0,43150.0,0.04998]
[1704135538066,0.051636,43156.0,43150.0,0.05098]
[1704135538542,0.051636,43156.0,43150.0,0.05198]
[1704135538747,0.051636,43156.0,43150.0,0.002]
[1704135538953,0.051636,43156.0,43150.0,0.001]
[1704135539415,0.057636,43156.0,43150.0,0.002]
[1704135543861,0.057636,43156.0,43150.0,0.2136]
[1704135545221,0.057636,43156.0,43150.0,0.26244]
[1704135545443,0.057636,43156.0,43151.0,0.0483]
[1704135546350,0.057636,43156.0,43154.0,0.01]
[1704135546351,0.051636,43156.0,43154.0,0.01]
[1704135546568,0.057636,43156.0,43154.0,0.01]
[1704135546788,0.051636,43156.0,43154.0,0.01]
[1704135547003,0.051636,43156.0,43152.0,0.01]
[1704135547440,0.051636,43156.0,43154.0,0.001]
[1704135548293,0.057636,43156.0,43154.0,0.002]
[1704135548721,0.051636,43156.0,43154.0,0.001]
[1704135549146,0.057636,43156.0,43154.0,0.001]
[1704135549604,0.051636,43156.0,43154.0,0.001]
[1704135550039,0.057636,43156.0,43154.0,0.002]
[1704135551484,0.23321711,43155.0,43154.0,0.002]
[1704135551689,0.74229811,43155.0,43154.0,0.002]
[1704135552272,0.74229811,43155.0,43154.0,0.001]
[1704135552762,0.74729811,43155.0,43154.0,0.002]
[1704135552979,0.74729811,43155.0,43154.0,0.001]
[1704135553423,0.28885311,43155.0,43154.0,0.001]
[1704135553605,0.75229811,43155.0,43154.0,0.001]
[1704135556851,0.28885311,43155.0,43154.0,0.001]
[1704135557070,0.87529811,43155.0,43154.0,0.001]
[1704135557292,1.90389811,43155.0,43154.0,0.001]
[1704135557717,2.00858196,43155.0,43154.0,0.001]
[1704135557922,1.90389811,43155.0,43154.0,0.001]
[1704135558128,2.00858156,43155.0,43154.0,0.001]
[1704135558544,2.06396145,43155.0,43154.0,0.001]
[1704135558968,1.99396145,43155.0,43154.0,0.001]
[1704135559173,1.93858156,43155.0,43154.0,0.001]
[1704135559821,1.889278,43155.0,43154.0,0.001]
[1704135560032,1.99398038,43155.0,43154.0,0.001]
[1704135560235,2.0211883,43155.0,43154.0,0.001]
[1704135560861,1.96580841,43155.0,43154.0,0.001]
[1704135561474,2.04887862,43155.0,43154.0,0.001]
[1704135562923,1.96580841,43155.0,43154.0,0.001]
[1704135563709,2.02127456,43155.0,43154.0,0.001]
[1704135564556,1.96580841,43155.0,43154.0,0.001]
[1704135565106,2.05604841,43155.0,43154.0,0.001]
[1704135565317,2.13925196,43155.0,43154.0,0.001]
[1704135565523,2.33925196,43155.0,43154.0,0.001]
[1704135565723,2.25604841,43155.0,43154.0,0.001]
[1704135565971,2.31152238,43155.0,43154.0,0.001]
[1704135566381,2.20682,43155.0,43154.0,0.001]
[1704135566631,2.31158348,43155.0,43154.0,0.001]
[1704135566860,2.24907306,43155.0,43154.0,0.001]
[1704135567215,2.33907306,43155.0,43154.0,0.001]
[1704135569842,2.24907306,43155.0,43154.0,0.001]
[1704135570486,2.34315306,43155.0,43154.0,0.001]
[1704135570696,2.24907306,43155.0,43154.0,0.001]
[1704135571724,2.28389557,43155.0,43154.0,0.001]
[1704135572780,2.24907306,43155.0,43154.0,0.001]
[1704135572982,2.06110603,43155.0,43154.0,0.001]
[1704135573814,1.91658984,43155.0,43154.0,0.001]
[1704135574240,2.38003484,43155.0,43154.0,0.001]
[1704135574438,2.32455103,43155.0,43154.0,0.001]
[1704135574639,2.59003484,43155.0,43154.0,0.001]
[1704135574881,2.49481297,43155.0,43154.0,0.001]
[1704135575073,2.48481297,43155.0,43154.0,0.001]
[1704135575270,2.59481297,43155.0,43154.0,0.001]
[1704135575472,2.49481297,43155.0,43154.0,0.001]
[1704135575647,2.62253271,43155.0,43154.0,0.001]
[1704135575851,2.60189271,43155.0,43154.0,0.001]
[1704135576046,2.70189271,43155.0,43154.0,0.001]
[1704135576642,2.49189271,43155.0,43154.0,0.001]
[1704135577219,2.40868916,43155.0,43154.0,0.001]
[1704135577422,2.30868916,43155.0,43154.0,0.001]
[1704135577624,1.74046603,43155.0,43154.0,0.001]
[1704135578601,1.66790603,43155.0,43154.0,0.001]
[1704135579452,1.00950603,43155.0,43154.0,0.001]
[1704135580093,1.03250603,43155.0,43154.0,0.001]
[1704135581007,0.86928892,43155.0,43154.0,0.001]
[1704135581259,0.84628892,43155.0,43154.0,0.001]
[1704135581661,0.38284392,43155.0,43154.0,0.001]
[1704135581877,0.08284392,43155.0,43154.0,0.001]
[1704135582088,0.54628892,43155.0,43154.0,0.001]
[1704135582301,0.84628892,43155.0,43154.0,0.001]
[1704135583330,0.54628892,43155.0,43154.0,0.001]
[1704135589639,0.08284392,43155.0,43154.0,0.001]
[1704135591269,0.03720792,43155.0,43154.0,0.001]
[1704135591686,0.08284392,43155.0,43154.0,0.001]
[1704135593538,0.54628892,43155.0,43154.0,0.001]
[1704135593745,0.59494892,43155.0,43154.0,0.001]
[1704135594165,0.54628892,43155.0,43154.0,0.001]
[1704135598200,0.519081,43155.0,43154.0,0.001]
[1704135598604,0.055636,43155.0,43154.0,0.001]
[1704135601918,0.055636,43155.0,43154.0,0.011]
[1704135602840,0.055636,43155.0,43154.0,0.54421711]
[1704135603355,0.055636,43155.0,43154.0,0.59599711]
[1704135603605,0.050636,43155.0,43154.0,1.0669856]
[1704135603924,0.050636,43155.0,43154.0,1.20560179]
[1704135604130,0.045636,43155.0,43154.0,1.0669856]
[1704135604596,0.045636,43155.0,43154.0,1.18282229]
[1704135604823,0.045636,43155.0,43154.0,1.17782229]
[1704135605328,0.051636,43155.0,43154.0,1.29128229]
[1704135605572,0.001,43155.0,43154.0,1.3479056]
[1704135605801,0.001,43155.0,43154.0,1.51439974]
[1704135606011,0.001,43155.0,43154.0,1.3479056]
[1704135606210,0.001,43155.0,43154.0,1.49602446]
[1704135606418,0.001,43155.0,43154.0,1.3299056]
[1704135606625,0.05,43172.0,43170.0,0.2]
[1704135606838,0.05,43172.0,43171.0,0.09328685]
[1704135607043,0.05,43172.0,43170.0,0.2]
[1704135607260,0.004,43179.0,43173.0,0.01]
[1704135607665,0.004,43179.0,43174.0,0.2308]
[1704135608514,0.009,43179.0,43174.0,0.2308]
[1704135608907,0.004,43179.0,43174.0,0.2308]
[1704135609114,0.009,43179.0,43174.0,0.2308]
[1704135609318,0.016,43179.0,43174.0,0.2318]
[1704135610501,0.011,43179.0,43174.0,0.2318]
[1704135610699,0.016,43179.0,43174.0,0.2318]
[1704135611149,0.04428953,43179.0,43174.0,0.2318]
[1704135611360,0.016,43179.0,43174.0,0.2318]
[1704135611599,0.00367613,43179.0,43174.0,0.2318]
[1704135611780,0.005,43179.0,43174.0,0.2308]
[1704135612623,0.011,43179.0,43174.0,0.2308]
[1704135613241,0.011,43179.0,43174.0,0.2408]
[1704135613489,0.011,43179.0,43176.0,0.01]
[1704135613920,0.011,43179.0,43175.0,0.01]
[1704135614152,0.011,43179.0,43176.0,0.01]
[1704135614353,0.005,43179.0,43176.0,0.01]
[1704135615000,0.004,43179.0,43176.0,0.01]
[1704135615453,0.007,43179.0,43176.0,0.01]
[1704135616905,0.003,43179.0,43176.0,0.01]
[1704135617146,0.007,43179.0,43176.0,0.01]
[1704135617573,0.004,43179.0,43174.0,0.4408]
[1704135617782,0.004,43179.0,43176.0,0.01]
[1704135617977,0.007,43179.0,43176.0,0.01]
[1704135618432,0.02732817,43182.0,43176.0,0.01]
[1704135618656,0.002,43179.0,43176.0,0.01]
[1704135618874,0.004,43179.0,43176.0,0.01]
[1704135619086,0.579835,43184.0,43176.0,0.01]
[1704135619546,0.463135,43184.0,43176.0,0.01]
[1704135620364,0.003,43182.0,43176.0,0.01]
[1704135620582,0.002,43179.0,43176.0,0.01]
[1704135621069,0.463135,43184.0,43176.0,0.01]
[1704135621070,0.466135,43184.0,43176.0,0.011]
[1704135621282,0.472135,43184.0,43176.0,0.011]
[1704135621695,0.003,43182.0,43176.0,0.011]
[1704135621937,0.463135,43184.0,43176.0,0.01]
[1704135622177,0.004,43179.0,43176.0,0.01]
[1704135623361,0.004,43179.0,43176.0,0.10328685]
[1704135623589,0.002,43179.0,43176.0,0.10328685]
[1704135623819,0.006,43182.0,43177.0,0.09328685]
[1704135624268,0.466142,43184.0,43177.0,0.32398685]
[1704135624497,0.002,43179.0,43177.0,0.32398685]
[1704135624713,0.004,43179.0,43177.0,0.2307]
[1704135624918,0.463142,43184.0,43177.0,0.2307]
[1704135625345,0.009,43182.0,43177.0,0.2307]
[1704135625562,0.006,43182.0,43177.0,0.2307]
[1704135625815,0.002,43179.0,43177.0,0.2307]
[1704135626866,0.002,43179.0,43177.0,0.2317]
[1704135627173,0.47214,43184.0,43177.0,0.2317]
[1704135627257,0.003,43184.0,43177.0,0.2317]
[1704135627485,0.463184,43180.0,43172.0,0.01]
[1704135627698,0.463194,43179.0,43172.0,0.01]
[1704135627906,0.465194,43179.0,43170.0,0.2392]
[1704135628123,0.29621711,43178.0,43170.0,0.2392]
[1704135628339,0.31921711,43178.0,43177.0,0.001]
[1704135628547,0.78241511,43178.0,43177.0,0.001]
[1704135628754,0.71941511,43178.0,43168.0,0.6584]
[1704135628963,0.463258,43173.0,43168.0,0.6584]
[1704135629178,0.463258,43173.0,43164.0,0.2276]
[1704135630039,0.463227,43176.0,43170.0,0.01]
[1704135630253,0.463231,43175.0,43165.0,0.2531]
[1704135630470,0.463231,43175.0,43170.0,0.01]
[1704135630685,0.007,43173.0,43170.0,0.01]
[1704135631112,0.463222,43176.0,43170.0,0.01]
[1704135631377,0.468222,43176.0,43170.0,0.011]
[1704135631588,0.007,43175.0,43170.0,0.01]
[1704135632028,0.00369255,43173.0,43170.0,0.01]
[1704135632253,0.007,43175.0,43170.0,0.01]
[1704135632669,0.463222,43176.0,43170.0,0.01]
[1704135633061,0.467222,43176.0,43170.0,0.01]
[1704135633542,0.463222,43176.0,43170.0,0.01]
[1704135633759,0.003,43175.0,43170.0,0.01]
[1704135634404,0.467222,43176.0,43170.0,0.01]
[1704135634616,0.471222,43176.0,43170.0,0.01]
[1704135635271,0.467222,43176.0,43170.0,0.01]
[1704135635982,0.463222,43176.0,43170.0,0.01]
[1704135636203,0.003,43175.0,43170.0,0.01]
[1704135636799,0.463222,43176.0,43170.0,0.01]
[1704135636994,0.004,43176.0,43170.0,0.01]
[1704135637219,0.008,43176.0,43170.0,0.01]
[1704135637456,0.023,43178.0,43170.0,0.01]
[1704135637670,0.003,43175.0,43170.0,0.01]
[1704135637882,0.006,43175.0,43170.0,0.01]